[Event "European Womens-ch 2025"]
[Site "Rhodes"]
[Date "2025.04.07"]
[Round "7.1"]
[White "Kirtadze, Anastasia"]
[Black "Milliet, Sophie"]
[Result "1/2-1/2"]
[Annotator "RC"]
[ECO "C78"]
[WhiteElo "2180"]
[BlackElo "2371"]
[PlyCount "88"]
[EventDate "2025.03.29"]
[EventType "swiss"]
[EventCountry "GRE"]
[SourceTitle "playchess.com"]
[Source "ChessBase"]
[SourceQuality "1"]
[TimeControl "40/5400+30:1800+30"]

1. e4 {[%emt 0:00:04]} e5 {[%emt 0:00:04]} 2. Nf3 {[%emt 0:00:05]} Nc6 {[%emt 0:00:05]} 3. Bb5 {[%emt 0:00:05]} a6 {[%emt 0:00:04]} 4. Ba4 {[%emt 0:00:05]} Nf6 {[%emt 0:00:04]} 5. O-O {[%emt 0:00:11]} Bc5 {[%emt 0:00:10]} 6. c3 {[%emt 0:03:04]} b5 {[%emt 0:00:06]} 7. Bb3 {[%emt 0:02:18]} d6 {[%emt 0:00:06]} 8. d4 {[%emt 0:01:33]} Bb6 {[%emt 0:00:04]} 9. h3 {[%emt 0:06:36]} O-O {[%emt 0:01:19]} 10. Be3 {[%emt 0:07:19]} h6 {[%emt 0:04:32]} 11. a4 {[%emt 0:07:29]} Rb8 {[%emt 0:04:03]} 12. Nbd2 {[%emt 0:05:12]} Re8 {[%emt 0:07:50]} 13. Re1 {[%emt 0:06:36]} Bb7 {[%emt 0:17:27]} 14. dxe5 {[%emt 0:14:37]} Bxe3 {[%emt 0:00:59]} 15. exf6 {[%emt 0:05:35]} Bxd2 {[%emt 0:00:11]} 16. Qxd2 {[%emt 0:00:53]} Qxf6 {[%emt 0:00:05]} 17. axb5 {[%emt 0:02:57]} axb5 {[%emt 0:00:05]} 18. Bd5 {[%emt 0:00:41]} Ne5 {[%emt 0:03:33]} 19. Nxe5 {[%emt 0:02:26]} Qxe5 {[%emt 0:00:32]} 20. f4 {[%emt 0:08:34]} Qf6 {[%emt 0:00:45]} 21. Ra7 {[%emt 0:03:20]} Bxd5 {[%emt 0:03:03]} 22. exd5 {[%emt 0:02:24]} Re7 {[%emt 0:05:36]} 23. Rxe7 {[%emt 0:06:36]} Qxe7 {[%emt 0:00:02]} 24. Kh2 {[%emt 0:01:33]} h5 {[%emt 0:01:51]} 25. Ra1 {[%emt 0:04:15]} Re8 {[%emt 0:02:14]} 26. Qd3 {[%emt 0:02:00]} Qe2 {[%emt 0:26:40]} 27. Qxe2 {[%emt 0:01:20]} Rxe2 {[%emt 0:00:01]} 28. Ra8+ {[%emt 0:01:28]} Kh7 {[%emt 0:00:02]} 29. Ra7 {[%emt 0:00:49]} Rxb2 {[%emt 0:00:33]} 30. Rxc7 {[%emt 0:00:01]} Rd2 {[%emt 0:04:24]} 31. Rxf7 {[%emt 0:00:34]} Rxd5 {[%emt 0:00:13]} 32. Rc7 {[%emt 0:03:42]} h4 {[%emt 0:05:09]} 33. c4 {[%emt 0:00:40]} bxc4 {[%emt 0:01:31]} 34. Rxc4 {[%emt 0:00:01]} Kg6 {[%emt 0:00:08]} 35. f5+ {[%emt 0:00:41]} Kxf5 {[%emt 0:01:55]} 36. Rxh4 {[%emt 0:00:05]} Rd3 {[%emt 0:00:57]} 37. Rg4 {[%emt 0:00:54]} g6 {[%emt 0:02:21]} 38. Kg1 {[%emt 0:00:18]} Rd2 {[%emt 0:00:38]} 39. Kf1 {[%emt 0:00:12]} d5 {[%emt 0:00:16]} 40. Ke1 {[%emt 0:00:00]} Ra2 {[%emt 0:00:00]} 41. Kf1 {[%emt 0:05:31]} Rc2 {[%emt 0:02:18]} 42. Rd4 {[%emt 0:03:41]} Ke5 {[%emt 0:00:19]} 43. Rg4 {[%emt 0:00:05]} Kf5 {[%emt 0:00:36]} 44. Rd4 {[%emt 0:00:02]} Ke5 {[%emt 0:39:39]} 1/2-1/2

[Event "European Womens-ch 2025"]
[Site "Rhodes"]
[Date "2025.04.07"]
[Round "7.2"]
[White "Injac, Teodora"]
[Black "Narva, Mai"]
[Result "1-0"]
[Annotator "RC"]
[ECO "A61"]
[WhiteElo "2454"]
[BlackElo "2380"]
[PlyCount "75"]
[EventDate "2025.03.29"]
[EventType "swiss"]
[EventCountry "GRE"]
[SourceTitle "playchess.com"]
[Source "ChessBase"]
[SourceQuality "1"]
[TimeControl "40/5400+30:1800+30"]

1. d4 {[%emt 0:00:08]} Nf6 {[%emt 0:00:11]} 2. Nf3 {[%emt 0:00:28]} g6 {[%emt 0:00:20]} 3. c4 {[%emt 0:00:29]} Bg7 {[%emt 0:00:14]} 4. Nc3 {[%emt 0:00:05]} O-O {[%emt 0:00:25]} 5. Bg5 {[%emt 0:01:16]} c5 {[%emt 0:11:49]} 6. d5 {[%emt 0:00:19]} h6 {[%emt 0:03:17]} 7. Bh4 {[%emt 0:00:12]} d6 {[%emt 0:00:31]} 8. e3 {[%emt 0:04:47]} e6 {[%emt 0:05:08]} 9. Nd2 {[%emt 0:02:19]} exd5 {[%emt 0:19:22]} 10. cxd5 {[%emt 0:00:26]} a6 {[%emt 0:00:59]} 11. a4 {[%emt 0:01:54]} Nbd7 {[%emt 0:03:08]} 12. Be2 {[%emt 0:01:51]} Re8 {[%emt 0:01:53]} 13. O-O {[%emt 0:01:02]} Qc7 {[%emt 0:01:48]} 14. h3 {[%emt 0:03:37]} Rb8 {[%emt 0:04:43]} 15. Bg3 {[%emt 0:03:23]} Nh7 {[%emt 0:02:25]} 16. Rc1 {[%emt 0:13:46]} Bxc3 {[%emt 0:12:25]} 17. Rxc3 {[%emt 0:16:14]} Nhf6 {[%emt 0:01:25]} 18. b4 {[%emt 0:11:11]} b5 {[%emt 0:02:37]} 19. axb5 {[%emt 0:01:19]} axb5 {[%emt 0:00:16]} 20. bxc5 {[%emt 0:03:07]} Nxc5 {[%emt 0:00:20]} 21. Rc1 {[%emt 0:00:39]} Bd7 {[%emt 0:15:08]} 22. Nb3 {[%emt 0:02:20]} Nfe4 {[%emt 0:01:50]} 23. Bf4 {[%emt 0:00:20]} g5 {[%emt 0:02:04]} 24. Bh2 {[%emt 0:01:01]} Qb6 {[%emt 0:01:46]} 25. Nxc5 {[%emt 0:01:07]} Nxc5 {[%emt 0:00:06]} 26. Bh5 {[%emt 0:04:10]} Re7 {[%emt 0:03:32]} 27. Qd4 {[%emt 0:12:58]} Ne4 {[%emt 0:00:18]} 28. Qb4 {[%emt 0:00:01]} Rd8 {[%emt 0:01:19]} 29. Rfe1 {[%emt 0:01:46]} Ree8 {[%emt 0:02:37]} 30. Qb2 {[%emt 0:01:15]} Rc8 {[%emt 0:01:23]} 31. Bf3 {[%emt 0:00:47]} Bf5 {[%emt 0:01:26]} 32. Bxe4 {[%emt 0:01:24]} Bxe4 {[%emt 0:00:05]} 33. Qf6 {[%emt 0:00:25]} b4 {[%emt 0:01:31]} 34. Be5 {[%emt 0:04:27]} dxe5 {[%emt 0:00:36]} 35. Qxb6 {[%emt 0:00:05]} Rb8 {[%emt 0:00:07]} 36. Qxh6 {[%emt 0:00:36]} b3 {[%emt 0:00:11]} 37. Qxg5+ {[%emt 0:00:04]} Kf8 {[%emt 0:00:13]} 38. Qf6 {[%emt 0:01:29]} 1-0

[Event "European Womens-ch 2025"]
[Site "Rhodes"]
[Date "2025.04.07"]
[Round "7.3"]
[White "Khotenashvili, Bella"]
[Black "Danielian, Elina"]
[Result "1/2-1/2"]
[Annotator "RC"]
[ECO "A29"]
[WhiteElo "2418"]
[BlackElo "2398"]
[PlyCount "73"]
[EventDate "2025.03.29"]
[EventType "swiss"]
[EventCountry "GRE"]
[SourceTitle "playchess.com"]
[Source "ChessBase"]
[SourceQuality "1"]
[TimeControl "40/5400+30:1800+30"]

1. c4 {[%emt 0:00:06]} e5 {[%emt 0:00:12]} 2. Nc3 {[%emt 0:00:30]} Nf6 {[%emt 0:00:07]} 3. Nf3 {[%emt 0:00:13]} Nc6 {[%emt 0:00:15]} 4. g3 {[%emt 0:00:16]} Bb4 {[%emt 0:03:26]} 5. Nd5 {[%emt 0:00:09]} e4 {[%emt 0:11:57]} 6. Nh4 {[%emt 0:02:26]} d6 {[%emt 0:24:33]} 7. a3 {[%emt 0:30:27]} Bc5 {[%emt 0:00:08]} 8. e3 {[%emt 0:00:06]} a5 {[%emt 0:06:55]} 9. Qc2 {[%emt 0:18:20]} g5 {[%emt 0:13:42]} 10. b4 {[%emt 0:12:30]} axb4 {[%emt 0:13:35]} 11. Bb2 {[%emt 0:01:00]} Ne5 {[%emt 0:00:48]} 12. axb4 {[%emt 0:05:10]} Rxa1+ {[%emt 0:00:04]} 13. Bxa1 {[%emt 0:00:03]} gxh4 {[%emt 0:05:44]} 14. bxc5 {[%emt 0:04:15]} Bg4 {[%emt 0:09:08]} 15. Bxe5 {[%emt 0:10:49]} dxe5 {[%emt 0:00:07]} 16. Bg2 {[%emt 0:01:34]} Nxd5 {[%emt 0:06:22]} 17. cxd5 {[%emt 0:00:32]} Qxd5 {[%emt 0:00:49]} 18. Bxe4 {[%emt 0:00:43]} Qe6 {[%emt 0:00:33]} 19. gxh4 {[%emt 0:04:21]} c6 {[%emt 0:00:38]} 20. Rg1 {[%emt 0:00:37]} f5 {[%emt 0:00:23]} 21. Bd3 {[%emt 0:05:33]} e4 {[%emt 0:00:40]} 22. Be2 {[%emt 0:00:45]} Bxe2 {[%emt 0:00:19]} 23. Kxe2 {[%emt 0:00:12]} Rg8 {[%emt 0:00:20]} 24. Rg3 {[%emt 0:00:41]} Kf7 {[%emt 0:01:08]} 25. Qc3 {[%emt 0:00:38]} Rg6 {[%emt 0:00:25]} 26. Qb4 {[%emt 0:00:33]} Qd7 {[%emt 0:00:19]} 27. Qb3+ {[%emt 0:00:13]} Kf6 {[%emt 0:00:15]} 28. Qc3+ {[%emt 0:00:27]} Kf7 {[%emt 0:00:06]} 29. h5 {[%emt 0:00:48]} Rxg3 {[%emt 0:00:34]} 30. hxg3 {[%emt 0:00:44]} Qd5 {[%emt 0:00:44]} 31. Ke1 {[%emt 0:00:38]} Qa2 {[%emt 0:00:23]} 32. Kf1 {[%emt 0:00:24]} Qb1+ {[%emt 0:00:18]} 33. Kg2 {[%emt 0:00:04]} Qd1 {[%emt 0:00:27]} 34. Qc4+ {[%emt 0:00:12]} Ke7 {[%emt 0:00:24]} 35. Qb4 {[%emt 0:01:16]} Qf3+ {[%emt 0:00:09]} 36. Kg1 {[%emt 0:00:06]} Qd1+ {[%emt 0:00:07]} 37. Kg2 {[%emt 0:00:10]} 1/2-1/2

[Event "European Womens-ch 2025"]
[Site "Rhodes"]
[Date "2025.04.07"]
[Round "7.4"]
[White "Beydullayeva, Govhar"]
[Black "Mkrtchian, Lilit"]
[Result "0-1"]
[Annotator "RC"]
[ECO "A17"]
[WhiteElo "2400"]
[BlackElo "2388"]
[PlyCount "70"]
[EventDate "2025.03.29"]
[EventType "swiss"]
[EventCountry "GRE"]
[SourceTitle "playchess.com"]
[Source "ChessBase"]
[SourceQuality "1"]
[TimeControl "40/5400+30:1800+30"]

1. Nf3 {[%emt 0:00:05]} d5 {[%emt 0:00:58]} 2. c4 {[%emt 0:00:10]} e6 {[%emt 0:01:17]} 3. e3 {[%emt 0:00:17]} Nf6 {[%emt 0:00:51]} 4. Nc3 {[%emt 0:03:16]} a6 {[%emt 0:07:38]} 5. b3 {[%emt 0:04:38]} b6 {[%emt 0:06:33]} 6. cxd5 {[%emt 0:01:36]} exd5 {[%emt 0:00:39]} 7. g3 {[%emt 0:01:15]} Bb7 {[%emt 0:02:08]} 8. Bg2 {[%emt 0:00:28]} Bd6 {[%emt 0:00:42]} 9. Bb2 {[%emt 0:01:34]} O-O {[%emt 0:01:02]} 10. O-O {[%emt 0:01:40]} Re8 {[%emt 0:03:54]} 11. Rc1 {[%emt 0:01:57]} Nbd7 {[%emt 0:01:11]} 12. d3 {[%emt 0:04:06]} Rc8 {[%emt 0:20:42]} 13. Re1 {[%emt 0:11:29]} b5 {[%emt 0:04:51]} 14. d4 {[%emt 0:07:15]} Ne4 {[%emt 0:11:24]} 15. Ne2 {[%emt 0:04:39]} Qe7 {[%emt 0:12:52]} 16. Rc2 {[%emt 0:11:22]} a5 {[%emt 0:06:34]} 17. Nf4 {[%emt 0:04:43]} c6 {[%emt 0:02:57]} 18. Nd3 {[%emt 0:01:58]} f6 {[%emt 0:00:25]} 19. Nh4 {[%emt 0:05:18]} g6 {[%emt 0:00:45]} 20. Qg4 {[%emt 0:08:37]} Qg7 {[%emt 0:02:16]} 21. Qd1 {[%emt 0:02:49]} Ra8 {[%emt 0:00:50]} 22. Nc5 {[%emt 0:05:20]} Nexc5 {[%emt 0:06:18]} 23. dxc5 {[%emt 0:00:04]} Bxc5 {[%emt 0:00:24]} 24. e4 {[%emt 0:01:45]} Bb4 {[%emt 0:04:13]} 25. Re3 {[%emt 0:04:10]} dxe4 {[%emt 0:00:27]} 26. Bxe4 {[%emt 0:07:38]} Nc5 {[%emt 0:00:13]} 27. Bg2 {[%emt 0:00:20]} Rxe3 {[%emt 0:01:08]} 28. fxe3 {[%emt 0:00:00]} Qe7 {[%emt 0:00:43]} 29. Qf3 {[%emt 0:03:26]} Nd3 {[%emt 0:00:32]} 30. Bxf6 {[%emt 0:01:26]} Qe6 {[%emt 0:00:10]} 31. Bd4 {[%emt 0:02:08]} Ne1 {[%emt 0:00:29]} 32. Qxc6 {[%emt 0:00:09]} Bxc6 {[%emt 0:00:45]} 33. Rxc6 {[%emt 0:00:03]} Qf7 {[%emt 0:00:26]} 34. Bf1 {[%emt 0:01:16]} Rf8 {[%emt 0:00:16]} 35. Rf6 {[%emt 0:00:18]} Qxf6 {[%emt 0:00:23]} 0-1

[Event "European Womens-ch 2025"]
[Site "Rhodes"]
[Date "2025.04.07"]
[Round "7.5"]
[White "Bulmaga, Irina"]
[Black "Maltsevskaya, Aleksandra"]
[Result "1-0"]
[Annotator "RC"]
[ECO "B50"]
[WhiteElo "2362"]
[BlackElo "2376"]
[PlyCount "103"]
[EventDate "2025.03.29"]
[EventType "swiss"]
[EventCountry "GRE"]
[SourceTitle "playchess.com"]
[Source "ChessBase"]
[SourceQuality "1"]
[TimeControl "40/5400+30:1800+30"]

1. e4 {[%emt 0:00:04]} c5 {[%emt 0:00:06]} 2. Nf3 {[%emt 0:00:09]} d6 {[%emt 0:00:08]} 3. c3 {[%emt 0:00:26]} Nf6 {[%emt 0:06:24]} 4. h3 {[%emt 0:00:13]} Nc6 {[%emt 0:02:49]} 5. Bd3 {[%emt 0:00:30]} e5 {[%emt 0:06:14]} 6. Bc2 {[%emt 0:00:53]} Be7 {[%emt 0:00:56]} 7. d4 {[%emt 0:00:50]} cxd4 {[%emt 0:11:47]} 8. cxd4 {[%emt 0:00:27]} O-O {[%emt 0:00:21]} 9. Nc3 {[%emt 0:05:32]} exd4 {[%emt 0:06:42]} 10. Nxd4 {[%emt 0:00:46]} d5 {[%emt 0:00:31]} 11. Nxc6 {[%emt 0:05:18]} bxc6 {[%emt 0:00:22]} 12. exd5 {[%emt 0:02:22]} Nxd5 {[%emt 0:02:57]} 13. Nxd5 {[%emt 0:01:24]} Qxd5 {[%emt 0:00:25]} 14. Qxd5 {[%emt 0:04:24]} cxd5 {[%emt 0:00:08]} 15. O-O {[%emt 0:00:24]} Bf6 {[%emt 0:00:53]} 16. Rd1 {[%emt 0:05:31]} Be6 {[%emt 0:01:46]} 17. Rb1 {[%emt 0:03:53]} a5 {[%emt 0:07:40]} 18. g4 {[%emt 0:27:37]} g6 {[%emt 0:07:59]} 19. Ba4 {[%emt 0:08:29]} d4 {[%emt 0:09:30]} 20. b3 {[%emt 0:01:40]} h5 {[%emt 0:00:41]} 21. f3 {[%emt 0:02:06]} Rac8 {[%emt 0:02:35]} 22. Bd2 {[%emt 0:02:48]} Rc2 {[%emt 0:05:09]} 23. Bxa5 {[%emt 0:01:50]} Bg5 {[%emt 0:00:36]} 24. b4 {[%emt 0:07:14]} Rxa2 {[%emt 0:04:26]} 25. Ra1 {[%emt 0:01:25]} Be3+ {[%emt 0:14:06]} 26. Kh1 {[%emt 0:00:05]} hxg4 {[%emt 0:02:21]} 27. Rxa2 {[%emt 0:01:04]} Bxa2 {[%emt 0:00:07]} 28. hxg4 {[%emt 0:00:32]} Bd5 {[%emt 0:00:52]} 29. Kg2 {[%emt 0:00:43]} f5 {[%emt 0:00:52]} 30. g5 {[%emt 0:01:16]} Ra8 {[%emt 0:03:37]} 31. Bb5 {[%emt 0:04:20]} Kf7 {[%emt 0:00:31]} 32. Rh1 {[%emt 0:00:44]} Bxg5 {[%emt 0:01:02]} 33. Rh7+ {[%emt 0:01:15]} Kf6 {[%emt 0:01:17]} 34. Kg3 {[%emt 0:01:36]} Be3 {[%emt 0:00:27]} 35. f4 {[%emt 0:00:58]} Bf7 {[%emt 0:00:49]} 36. Bc6 {[%emt 0:01:41]} Ra6 {[%emt 0:00:49]} 37. Bd8+ {[%emt 0:04:33]} Ke6 {[%emt 0:00:05]} 38. Bb5 {[%emt 0:01:57]} Ra8 {[%emt 0:00:06]} 39. Bc7 {[%emt 0:00:42]} Kf6 {[%emt 0:01:22]} 40. Be5+ {[%emt 0:00:00]} Ke7 {[%emt 0:00:00]} 41. Bc4 {[%emt 0:01:32]} Rf8 {[%emt 0:00:15]} 42. Kf3 {[%emt 0:04:13]} Bg1 {[%emt 0:14:38]} 43. Ke2 {[%emt 0:11:42]} Ke8 {[%emt 0:00:47]} 44. Bb5+ {[%emt 0:01:29]} Ke7 {[%emt 0:00:05]} 45. Ba4 {[%emt 0:07:50]} d3+ {[%emt 0:16:23]} 46. Kxd3 {[%emt 0:00:19]} Rd8+ {[%emt 0:00:38]} 47. Ke2 {[%emt 0:00:21]} Bd4 {[%emt 0:00:25]} 48. Bb3 {[%emt 0:01:02]} Bxe5 {[%emt 0:00:52]} 49. fxe5 {[%emt 0:00:14]} Rd4 {[%emt 0:00:49]} 50. Rxf7+ {[%emt 0:00:25]} Ke8 {[%emt 0:00:04]} 51. e6 {[%emt 0:00:49]} Re4+ {[%emt 0:01:01]} 52. Kd3 {[%emt 0:00:19]} 1-0

[Event "European Womens-ch 2025"]
[Site "Rhodes"]
[Date "2025.04.07"]
[Round "7.6"]
[White "Urh, Zala"]
[Black "Javakhishvili, Lela"]
[Result "0-1"]
[Annotator "RC"]
[ECO "E48"]
[WhiteElo "2244"]
[BlackElo "2429"]
[PlyCount "92"]
[EventDate "2025.03.29"]
[EventType "swiss"]
[EventCountry "GRE"]
[SourceTitle "playchess.com"]
[Source "ChessBase"]
[SourceQuality "1"]
[TimeControl "40/5400+30:1800+30"]

1. d4 {[%emt 0:00:01]} Nf6 {[%emt 0:00:11]} 2. c4 {[%emt 0:00:05]} e6 {[%emt 0:00:17]} 3. Nc3 {[%emt 0:00:12]} Bb4 {[%emt 0:00:10]} 4. e3 {[%emt 0:00:32]} O-O {[%emt 0:00:10]} 5. Bd3 {[%emt 0:00:26]} d5 {[%emt 0:00:39]} 6. a3 {[%emt 0:01:37]} Be7 {[%emt 0:00:35]} 7. cxd5 {[%emt 0:03:23]} exd5 {[%emt 0:00:49]} 8. Nge2 {[%emt 0:00:15]} b6 {[%emt 0:02:12]} 9. b4 {[%emt 0:04:40]} c6 {[%emt 0:03:43]} 10. O-O {[%emt 0:02:28]} Re8 {[%emt 0:04:02]} 11. Kh1 {[%emt 0:15:35]} Bd6 {[%emt 0:12:55]} 12. f3 {[%emt 0:11:21]} a5 {[%emt 0:03:01]} 13. b5 {[%emt 0:16:13]} c5 {[%emt 0:01:52]} 14. Qe1 {[%emt 0:00:42]} Nbd7 {[%emt 0:03:13]} 15. g4 {[%emt 0:05:24]} Bb7 {[%emt 0:06:50]} 16. Qf2 {[%emt 0:07:40]} Nf8 {[%emt 0:03:45]} 17. Ng3 {[%emt 0:01:11]} Ne6 {[%emt 0:04:47]} 18. Nce2 {[%emt 0:00:28]} a4 {[%emt 0:03:38]} 19. Bd2 {[%emt 0:02:28]} g6 {[%emt 0:06:47]} 20. h3 {[%emt 0:11:26]} Qe7 {[%emt 0:05:36]} 21. Rae1 {[%emt 0:06:29]} cxd4 {[%emt 0:06:53]} 22. exd4 {[%emt 0:01:47]} Bxa3 {[%emt 0:00:55]} 23. g5 {[%emt 0:01:13]} Nd7 {[%emt 0:01:27]} 24. f4 {[%emt 0:00:24]} Bb4 {[%emt 0:11:20]} 25. Bxb4 {[%emt 0:04:47]} Qxb4 {[%emt 0:00:03]} 26. h4 {[%emt 0:02:00]} f5 {[%emt 0:04:32]} 27. gxf6 {[%emt 0:00:04]} Nxf6 {[%emt 0:00:18]} 28. f5 {[%emt 0:00:32]} Ne4 {[%emt 0:00:52]} 29. Bxe4 {[%emt 0:00:58]} dxe4 {[%emt 0:00:04]} 30. Qe3 {[%emt 0:00:26]} Nf8 {[%emt 0:03:23]} 31. f6 {[%emt 0:00:30]} Bd5 {[%emt 0:00:02]} 32. Qh6 {[%emt 0:00:30]} Ra7 {[%emt 0:00:09]} 33. Nf4 {[%emt 0:00:37]} Qd6 {[%emt 0:03:10]} 34. Nf5 {[%emt 0:00:31]} e3+ {[%emt 0:00:10]} 35. Kh2 {[%emt 0:00:30]} gxf5 {[%emt 0:00:31]} 36. Rg1+ {[%emt 0:00:09]} Ng6 {[%emt 0:01:32]} 37. Kh3 {[%emt 0:00:29]} Qxf6 {[%emt 0:02:04]} 38. Nxd5 {[%emt 0:00:33]} Qxd4 {[%emt 0:01:53]} 39. h5 {[%emt 0:00:50]} Qh4+ {[%emt 0:01:02]} 40. Kg2 {[%emt 0:00:00]} Rg7 {[%emt 0:00:00]} 41. Nxe3 {[%emt 0:03:56]} Nf4+ {[%emt 0:04:15]} 42. Kf3 {[%emt 0:00:20]} Qh3+ {[%emt 0:01:03]} 43. Kf2 {[%emt 0:00:09]} Nd3+ {[%emt 0:01:01]} 44. Ke2 {[%emt 0:00:14]} Qxe3+ {[%emt 0:00:51]} 45. Qxe3 {[%emt 0:00:08]} Rxe3+ {[%emt 0:00:03]} 46. Kxe3 {[%emt 0:00:06]} Nxe1 {[%emt 0:00:04]} 0-1

[Event "European Womens-ch 2025"]
[Site "Rhodes"]
[Date "2025.04.07"]
[Round "7.7"]
[White "Batsiashvili, Nino"]
[Black "Toncheva, Nadya"]
[Result "1-0"]
[Annotator "TA"]
[ECO "D10"]
[WhiteElo "2473"]
[BlackElo "2329"]
[PlyCount "55"]
[EventDate "2025.03.29"]
[EventType "swiss"]
[EventCountry "GRE"]
[SourceTitle "playchess.com"]
[Source "ChessBase"]
[SourceQuality "1"]
[TimeControl "40/5400+30:1800+30"]

{[%evp 18,55,25,27,28,25,35,0,0,-6,0,0,0,-33,39,0,52,31,25,20,28,22,16,31,117,120,304,288,262,260,310,313,658,624,706,562,1443,1360,1715,1704]} 1. d4 {[%emt 0:00:01]} d5 {[%emt 0:00:06]} 2. c4 {[%emt 0:00:04]} c6 {[%emt 0:00:09]} 3. cxd5 {[%emt 0:00:06]} cxd5 {[%emt 0:00:08]} 4. Bf4 {[%emt 0:00:03]} Nc6 {[%emt 0:01:14]} 5. e3 {[%emt 0:00:06]} e6 {[%emt 0:03:42]} 6. Nc3 {[%emt 0:01:04]} Nf6 {[%emt 0:00:33]} 7. Bd3 {[%emt 0:00:31]} Bd6 {[%emt 0:05:25]} 8. Bxd6 {[%emt 0:00:13]} Qxd6 {[%emt 0:00:04]} 9. f4 {[%emt 0:00:12]} O-O {[%emt 0:07:30] The main line 9...0-0 scores better than 9...Bd7.} 10. Nf3 {[%emt 0:00:29]} b6 {[%emt 0:01:13] D10: Slav Defence: 3 cxd5 (without early Nf3) and 3 Nc3.} 11. O-O {[%emt 0:05:40][%cal Bh1f1,Bf1f2,Bf2c2][%mdl 32]} Bb7 {[%emt 0:06:27]} 12. Ne5 {[%emt 0:03:51]} Nb4 {[%emt 0:04:32] The position is equal.} 13. Rc1 $146 {[%emt 0:10:28]} (13. Bb1 Ne4 14. Bxe4 dxe4 15. a3 Na6 16. Rc1 f6 17. Nc4 Qe7 18. Nd2 e5 19. fxe5 fxe5 20. Rxf8+ Rxf8 21. Ndxe4 exd4 22. Qxd4 {1-0 Lenderman,A (2591)-Chiku Ratte,O (2358) Dulles Cherry Blossom op 2022 (6)}) 13... Nxd3 {[%emt 0:01:45]} 14. Qxd3 {[%emt 0:00:02]} Qb4 {[%emt 0:11:03]} 15. Rf2 {[%emt 0:13:42]} Ne4 {[%emt 0:07:36]} ({Black should play} 15... Rfc8 $15) 16. Rfc2 {[%emt 0:04:32]} Rac8 {[%emt 0:05:20]} (16... Nd6 $11) 17. a3 {[%emt 0:08:32]} Qe7 {[%emt 0:01:57]} 18. Nxe4 {[%emt 0:09:09]} dxe4 {[%emt 0:00:08]} 19. Qb5 {[%emt 0:00:34]} Rxc2 {[%emt 0:07:49]} 20. Rxc2 {[%emt 0:00:01]} g6 {[%emt 0:07:22] [#]} (20... Rc8 $14 21. Rxc8+ Bxc8) 21. Qd7 $1 $16 {[%emt 0:08:25] White is much more active. Black is weak on the dark squares} Qh4 {[%emt 0:12:17] Loses the game.} (21... Qxd7 $16 {is a better defense.} 22. Nxd7 Rc8 23. Rxc8+ Bxc8 24. Nf6+ Kf8 25. Nxe4 (25. Nxh7+ Kg7 $16) 25... Ke7) 22. Rc1 $18 {[%emt 0:01:03]} (22. Qxb7 $2 Qe1#) 22... Bd5 {[%emt 0:07:11]} 23. Qxa7 {[%emt 0:02:25]} Kg7 {[%emt 0:02:18]} 24. Qc7 {[%emt 0:05:22][%cal Oe5d7] Nd7! would now be deadly.} ({Not} 24. Qxb6 Rc8 25. Rf1 (25. Rxc8 $2 Qe1#) 25... Qe7 $16) 24... b5 $2 {[%emt 0:03:34]} (24... Qd8 25. Qxd8 Rxd8) 25. Nd7 {[%emt 0:01:36] White is clearly winning.} Rd8 {[%emt 0:01:57]} 26. g3 {[%emt 0:04:21]} Qe7 {[%emt 0:00:09]} 27. Qe5+ {[%emt 0:00:29]} f6 {[%emt 0:01:39] [#]} 28. Nxf6 $1 {[%emt 0:00:06][%mdl 512] Weighted Error Value: White=0.16 (very precise) /Black=0.89  Loses game:     	---       	Black=1      Mistake:       	---       	Black=4      Inaccurate:     	White=3     	---        OK:         	White=4     	Black=4      Best:        	White=1     	---        Strong:       	White=1     	---} 1-0

[Event "European Womens-ch 2025"]
[Site "Rhodes"]
[Date "2025.04.07"]
[Round "7.8"]
[White "Arabidze, Meri"]
[Black "Zimina, Olga"]
[Result "1-0"]
[Annotator "RC"]
[ECO "E20"]
[WhiteElo "2447"]
[BlackElo "2293"]
[PlyCount "93"]
[EventDate "2025.03.29"]
[EventType "swiss"]
[EventCountry "GRE"]
[SourceTitle "playchess.com"]
[Source "ChessBase"]
[SourceQuality "1"]
[TimeControl "40/5400+30:1800+30"]

1. c4 {[%emt 0:00:06]} e6 {[%emt 0:02:41]} 2. d4 {[%emt 0:00:55]} Nf6 {[%emt 0:00:10]} 3. Nc3 {[%emt 0:00:17]} Bb4 {[%emt 0:00:08]} 4. g3 {[%emt 0:00:27]} c5 {[%emt 0:02:08]} 5. Nf3 {[%emt 0:00:16]} O-O {[%emt 0:02:31]} 6. Bg2 {[%emt 0:01:25]} d5 {[%emt 0:11:52]} 7. dxc5 {[%emt 0:09:33]} dxc4 {[%emt 0:03:06]} 8. O-O {[%emt 0:13:11]} Nc6 {[%emt 0:01:50]} 9. Qc2 {[%emt 0:14:13]} Qa5 {[%emt 0:27:07]} 10. Na4 {[%emt 0:17:08]} b5 {[%emt 0:02:54]} 11. a3 {[%emt 0:06:42]} Bb7 {[%emt 0:01:49]} 12. Be3 {[%emt 0:09:08]} bxa4 {[%emt 0:23:42]} 13. axb4 {[%emt 0:00:16]} Nxb4 {[%emt 0:00:33]} 14. Qxa4 {[%emt 0:01:25]} Qxa4 {[%emt 0:00:06]} 15. Rxa4 {[%emt 0:00:03]} Nbd5 {[%emt 0:12:26]} 16. Bd4 {[%emt 0:07:26]} Bc6 {[%emt 0:00:15]} 17. Ra5 {[%emt 0:00:28]} Nd7 {[%emt 0:01:04]} 18. Ne5 {[%emt 0:05:41]} Nxe5 {[%emt 0:00:07]} 19. Bxe5 {[%emt 0:00:03]} a6 {[%emt 0:00:17]} 20. Bd6 {[%emt 0:05:19]} Rfd8 {[%emt 0:01:07]} 21. Rc1 {[%emt 0:00:19]} Bb5 {[%emt 0:00:05]} 22. h4 {[%emt 0:01:00]} Rac8 {[%emt 0:00:42]} 23. h5 {[%emt 0:01:11]} h6 {[%emt 0:00:40]} 24. Bf3 {[%emt 0:02:23]} Rd7 {[%emt 0:00:06]} 25. Kg2 {[%emt 0:00:25]} Ne7 {[%emt 0:01:02]} 26. e4 {[%emt 0:03:20]} Nc6 {[%emt 0:00:25]} 27. Ra3 {[%emt 0:00:03]} Nb4 {[%emt 0:02:04]} 28. Be2 {[%emt 0:00:49]} Nd3 {[%emt 0:00:33]} 29. Bxd3 {[%emt 0:00:27]} cxd3 {[%emt 0:00:01]} 30. e5 {[%emt 0:00:58]} f6 {[%emt 0:00:28]} 31. f4 {[%emt 0:00:29]} fxe5 {[%emt 0:02:04]} 32. fxe5 {[%emt 0:00:02]} Rf7 {[%emt 0:00:26]} 33. Rd1 {[%emt 0:00:31]} Rf5 {[%emt 0:01:01]} 34. Raxd3 {[%emt 0:00:56]} Bxd3 {[%emt 0:00:10]} 35. Rxd3 {[%emt 0:00:02]} Rxh5 {[%emt 0:01:23]} 36. Ra3 {[%emt 0:00:49]} Rc6 {[%emt 0:00:34]} 37. Rb3 {[%emt 0:00:01]} Rf5 {[%emt 0:00:34]} 38. Rb6 {[%emt 0:00:11]} Rc8 {[%emt 0:00:33]} 39. Rxa6 {[%emt 0:00:45]} Rf7 {[%emt 0:00:05]} 40. c6 {[%emt 0:00:00]} g5 {[%emt 0:00:00]} 41. b4 {[%emt 0:07:28]} g4 {[%emt 0:23:34]} 42. b5 {[%emt 0:00:09]} Rf3 {[%emt 0:00:16]} 43. Ra3 {[%emt 0:00:33]} Rxa3 {[%emt 0:00:10]} 44. Bxa3 {[%emt 0:00:02]} Kf7 {[%emt 0:00:09]} 45. Bd6 {[%emt 0:03:14]} Kg6 {[%emt 0:00:24]} 46. c7 {[%emt 0:01:27]} Kf5 {[%emt 0:00:30]} 47. b6 {[%emt 0:00:16]} 1-0